bitfinex-derivatives/quotes_BNBF0:USTF0_20251027
["timestamp","ask_amount","ask_price","bid_price","bid_amount"]
[1761554753812,2.13925744,1160.0,1156.3,0.56438328]
[1761554754013,2.13925744,1160.0,1156.4,0.56438328]
[1761554754310,2.13925744,1160.0,1156.5,0.56437207]
[1761554754518,2.13925744,1160.0,1156.2,0.15030742]
[1761554754816,2.13925744,1159.9,1156.3,0.56443789]
[1761554755016,2.13925744,1159.9,1156.4,0.56443789]
[1761554755214,2.13925744,1159.9,1156.5,0.56443789]
[1761554755418,2.13925744,1159.9,1156.2,0.15030742]
[1761554755715,2.13925744,1159.9,1156.3,1.97634461]
[1761554755917,2.13925744,1159.9,1156.4,0.56434461]
[1761554756118,2.13925744,1159.9,1156.5,0.56434461]
[1761554756317,2.13925744,1159.9,1156.3,1.412]
[1761554756612,2.13925744,1159.9,1156.4,0.5642374]
[1761554756813,2.13925744,1159.9,1156.5,0.5642374]
[1761554757012,2.13925744,1159.9,1156.3,1.412]
[1761554757217,2.13925744,1159.9,1156.4,0.5642374]
[1761554757413,2.13925744,1159.9,1156.5,0.5642374]
[1761554757617,2.13925744,1159.9,1156.6,0.5642374]
[1761554757917,2.13925744,1159.9,1156.3,1.412]
[1761554758117,2.13925744,1159.9,1156.4,0.56420571]
[1761554758318,2.13925744,1159.9,1156.5,0.56420571]
[1761554758516,2.13925744,1159.9,1156.6,0.56420571]
[1761554758716,2.13925744,1159.9,1156.3,1.412]
[1761554758916,2.13925744,1159.8,1156.4,0.56405334]
[1761554759116,2.13925744,1159.8,1156.5,0.56405334]
[1761554759320,2.13925744,1159.8,1156.6,0.56405334]
[1761554759522,2.13925744,1159.8,1156.3,1.412]
[1761554759717,2.13925744,1159.8,1156.4,0.5640665]
[1761554759921,2.13925744,1159.8,1156.5,0.5640665]
[1761554760122,2.13925744,1159.8,1156.6,0.5640665]
[1761554760317,2.13925744,1159.8,1156.3,1.412]
[1761554760622,2.13925744,1159.8,1156.4,0.56389727]
[1761554760822,2.13925744,1159.8,1156.5,0.56389727]
[1761554761021,2.13925744,1159.8,1156.6,0.56389727]
[1761554761222,2.13925744,1159.8,1156.3,1.412]
[1761554761518,2.13925744,1159.0,1156.3,1.412]
[1761554767622,2.13925744,1159.0,1156.4,0.5647263]
[1761554767825,2.13925744,1158.3,1156.3,1.412]
[1761554768127,2.13925744,1158.3,1156.4,0.5649105]
[1761554768324,2.13925744,1158.3,1156.3,1.412]
[1761554768530,2.13925744,1158.3,1156.4,0.56497901]
[1761554768728,2.13925744,1158.3,1156.3,1.412]
[1761554768927,2.13925744,1158.3,1156.4,0.56499639]
[1761554769130,2.13925744,1158.3,1156.3,1.412]
[1761554769431,2.13925744,1158.3,1156.4,0.56500791]
[1761554769629,2.13925744,1158.3,1156.3,1.412]
[1761554769927,2.13925744,1158.3,1156.4,0.56507816]
[1761554770127,2.13925744,1158.3,1156.3,1.412]
[1761554770331,2.9949059,1158.6,1156.4,0.5653949]
[1761554770633,2.13925744,1159.5,1156.3,1.412]
[1761554770832,2.13925744,1159.5,1156.4,0.56538753]
[1761554771032,2.13925744,1159.5,1156.3,1.412]
[1761554771229,2.13925744,1159.5,1156.4,0.56452865]
[1761554771430,2.13925744,1159.5,1156.5,0.56452572]
[1761554771633,2.13925744,1159.5,1156.6,0.56452572]
[1761554771834,2.13925744,1159.9,1156.7,0.56452572]
[1761554772030,2.13925744,1159.9,1156.8,0.56452572]
[1761554772229,2.13925744,1159.9,1156.3,1.412]
[1761554772431,2.13925744,1159.7,1156.4,0.5645963]
[1761554772632,2.13925744,1159.7,1156.3,1.412]
[1761554772633,2.13925744,1159.7,1156.5,0.5645963]
[1761554772833,2.13925744,1159.7,1156.6,0.5645963]
[1761554773032,2.13925744,1159.7,1156.7,0.5645963]
[1761554773232,2.13925744,1159.7,1156.8,0.56458401]
[1761554773436,2.13925744,1159.7,1156.3,1.412]
[1761554773736,2.13925744,1159.7,1156.4,0.56460287]
[1761554774034,2.13925744,1159.7,1156.5,0.56460287]
[1761554774235,2.13925744,1159.7,1156.6,0.56460287]
[1761554774434,2.13925744,1159.7,1156.7,0.56460287]
[1761554774631,2.13925744,1159.7,1156.8,0.56460287]
[1761554774938,2.13925744,1159.7,1156.3,1.412]
[1761554775135,2.9949059,1160.4,1156.3,1.412]
[1761554775136,2.13925744,1159.6,1156.4,0.56467864]
[1761554775336,2.13925744,1159.6,1156.5,0.56467864]
[1761554775635,2.13925744,1159.1,1156.6,0.56467864]
[1761554775835,2.13925744,1159.1,1156.7,0.56467864]
[1761554776036,2.13925744,1159.1,1156.3,1.412]
[1761554776332,2.13925744,1159.1,1156.4,0.56494208]
[1761554776532,2.13925744,1159.2,1156.5,0.56494208]
[1761554776832,2.13925744,1159.2,1156.6,0.56494208]
[1761554777035,2.13925744,1159.2,1156.7,0.56494208]
[1761554777330,2.13925744,1159.2,1156.3,1.412]
[1761554777536,2.13925744,1159.2,1156.4,0.56488539]
[1761554777835,2.13925744,1159.2,1156.5,0.56488539]
[1761554778035,2.13925744,1159.2,1156.6,0.56488539]
[1761554778234,2.13925744,1159.2,1156.7,0.56488539]
[1761554778433,2.13925744,1159.2,1156.3,1.412]
[1761554778737,2.13925744,1159.2,1156.4,0.56477869]
[1761554778937,2.13925744,1159.2,1156.5,0.56477869]
[1761554779133,2.13925744,1159.2,1156.6,0.56477869]
[1761554779341,2.13925744,1159.2,1156.7,0.56477869]
[1761554779541,2.13925744,1159.2,1156.3,1.412]
[1761554779741,2.13925744,1159.1,1156.4,0.56485019]
[1761554779941,2.13925744,1159.1,1156.5,0.56485019]
[1761554780138,2.13925744,1159.2,1156.6,0.56485019]
[1761554780338,2.13925744,1159.2,1156.7,0.56485019]
[1761554780543,2.13925744,1159.2,1156.3,1.412]
[1761554780743,2.13925744,1159.2,1156.4,0.56493226]
[1761554780947,2.13925744,1159.2,1156.5,0.56493226]
[1761554781244,2.13925744,1159.2,1156.6,0.56493226]
[1761554781440,2.13925744,1159.2,1156.3,1.412]
[1761554781743,2.13925744,1159.1,1156.4,0.56493374]
[1761554781940,2.13925744,1159.1,1156.5,0.56493374]
[1761554782140,2.13925744,1159.1,1156.6,0.56493374]
[1761554782343,2.13925744,1159.0,1156.7,0.56508417]
[1761554782541,2.13925744,1159.0,1156.3,1.412]
[1761554782745,2.13925744,1159.0,1156.4,0.56502052]
[1761554783041,2.13925744,1159.4,1156.5,0.56502052]
[1761554783242,2.13925744,1159.4,1156.6,0.56502052]
[1761554783441,2.13925744,1159.4,1156.7,0.56502052]
[1761554783643,2.13925744,1159.4,1156.8,0.56502052]
[1761554783941,2.13925744,1159.5,1156.3,2.05655007]
[1761554784145,2.9949059,1159.1,1156.5,0.64455007]
[1761554784344,2.9949059,1159.1,1156.6,0.56477544]
[1761554784542,2.13925744,1158.6,1156.7,0.56477544]
[1761554784740,2.13925744,1158.6,1156.8,0.56477544]
[1761554784946,2.13925744,1158.6,1156.5,0.64455007]
[1761554785144,2.13925744,1158.6,1156.6,0.56476954]
[1761554785346,2.13925744,1158.6,1156.7,0.56476954]
[1761554785546,2.13925744,1158.9,1156.8,0.56476954]
[1761554785846,2.13925744,1158.9,1156.4,0.64455007]
[1761554786046,2.13925744,1158.9,1156.5,0.56467424]
[1761554786247,2.13925744,1158.9,1156.6,0.56467424]
[1761554786445,2.13925744,1158.9,1156.7,0.56467424]
[1761554786644,2.13925744,1158.9,1156.8,0.56467424]
[1761554786842,2.13925744,1158.9,1156.9,0.56467424]
[1761554787048,2.13925744,1158.8,1156.6,0.64455007]
[1761554787246,2.13925744,1158.8,1156.7,0.56436316]
[1761554787445,2.13925744,1158.8,1156.8,0.56436316]
[1761554787648,2.13925744,1158.9,1156.9,0.56436316]
[1761554787845,2.13925744,1158.9,1157.0,0.56436316]
[1761554788050,2.13925744,1158.9,1156.6,0.64455007]
[1761554788249,2.13925744,1158.9,1156.7,0.56425133]
[1761554788450,2.13925744,1158.9,1156.8,0.56425133]
[1761554788745,2.13925744,1158.9,1156.9,0.56425133]
[1761554788949,2.13925744,1158.9,1156.6,0.64455007]
[1761554789246,2.13925744,1158.9,1156.7,0.56409792]
[1761554789445,2.13925744,1158.9,1156.8,0.56409792]
[1761554789644,2.13925744,1158.9,1156.9,0.56409792]
[1761554789947,2.13925744,1158.9,1156.6,0.64455007]
[1761554790147,2.13925744,1158.9,1156.7,0.56423398]
[1761554790346,2.13925744,1158.9,1156.8,0.56423398]
[1761554790647,2.13925744,1158.9,1156.9,0.56423398]
[1761554790848,2.13925744,1158.9,1156.6,0.64455007]
[1761554791151,2.13925744,1158.9,1156.7,0.56417625]
[1761554791351,2.13925744,1158.9,1156.8,0.56417625]
[1761554791552,2.13925744,1158.9,1156.9,0.56417625]
[1761554791752,2.13925744,1159.0,1157.0,0.56417625]
[1761554791951,2.13925744,1159.0,1156.7,0.64455007]
[1761554792150,2.13925744,1159.0,1156.8,0.56411811]
[1761554792353,2.13925744,1159.0,1156.9,0.56411811]
[1761554792551,2.13925744,1159.0,1157.0,0.56411811]
[1761554792751,2.13925744,1159.0,1156.7,0.64455007]
[1761554792954,2.13925744,1159.0,1156.8,0.56407497]
[1761554793254,2.13925744,1159.0,1156.9,0.56407497]
[1761554793451,2.13925744,1159.0,1157.0,0.56407497]
[1761554793655,2.13925744,1159.0,1156.7,0.64455007]
[1761554793854,2.13925744,1159.0,1156.8,0.56403556]
[1761554794056,2.13925744,1159.0,1156.9,0.56403556]
[1761554794255,2.13925744,1159.0,1157.0,0.56403556]
[1761554794454,2.13925744,1159.0,1156.7,0.64455007]
[1761554794653,2.13925744,1159.0,1156.8,0.5636444]
[1761554794858,2.13925744,1159.2,1156.9,0.5636444]
[1761554795058,2.13925744,1159.2,1157.0,0.5636444]
[1761554795257,2.13925744,1159.2,1156.6,0.64455007]
[1761554795460,2.13925744,1159.5,1156.7,0.56355319]
[1761554795660,2.13925744,1159.5,1156.8,0.56355319]
[1761554795961,2.13925744,1159.5,1156.9,0.56355319]
[1761554796161,2.13925744,1159.5,1157.0,0.56355319]
[1761554796460,2.2895376,1159.6,1156.6,0.64455007]
[1761554796661,2.2895376,1159.6,1156.7,0.56346826]
[1761554796862,2.2895376,1159.6,1156.8,0.56346826]
[1761554797058,0.15028016,1159.6,1156.9,0.56346826]
[1761554797261,0.15028016,1159.6,1157.0,0.56346826]
[1761554797457,0.15028016,1159.6,1156.5,0.64455007]
[1761554797761,2.13925744,1159.7,1156.6,0.5634214]
[1761554798061,0.15026718,1159.9,1156.7,0.5634214]
[1761554798263,0.15026718,1159.9,1156.8,0.5634214]
[1761554798459,0.15026718,1159.9,1156.9,0.5634214]
[1761554798660,0.15026718,1159.9,1157.0,0.5634214]
[1761554798963,0.15026718,1159.9,1157.1,0.5634214]
[1761554799162,0.15026718,1159.9,1157.2,0.5634214]
[1761554799361,0.15026718,1159.9,1156.4,0.64455007]
[1761554799664,0.15026718,1159.9,1156.7,0.64455007]
[1761554799863,0.15026718,1159.9,1156.8,0.56366773]
[1761554800062,0.15026718,1159.9,1156.9,0.56366773]
[1761554800260,0.15026718,1159.9,1157.0,0.56366773]
[1761554800458,0.15026718,1159.9,1157.1,0.56366773]
[1761554800659,0.15026718,1159.9,1157.2,0.56366773]
[1761554800858,0.15026718,1159.9,1157.3,0.56366773]
[1761554801060,0.15026718,1159.9,1156.7,0.64455007]
[1761554801260,0.15026718,1159.9,1156.8,0.56318465]
[1761554801460,0.15026718,1159.9,1156.9,0.56318465]
[1761554801658,0.15026718,1159.9,1157.0,0.56318465]
[1761554801861,0.15026718,1159.9,1157.1,0.56318465]
[1761554802059,0.15026718,1159.9,1157.2,0.56318465]
[1761554802261,0.15026718,1159.9,1156.7,0.64455007]
[1761554802464,0.15026718,1159.9,1156.8,0.56293011]
[1761554802662,0.15026718,1159.9,1156.9,0.56293011]
[1761554802966,0.15026718,1159.9,1157.0,0.56293011]
[1761554803165,0.15026718,1159.9,1157.1,0.56293011]
[1761554803366,0.15026718,1159.9,1157.2,0.56293011]
[1761554803568,0.15026718,1159.9,1156.7,0.64455007]
[1761554803768,0.15026718,1159.9,1156.8,0.56268725]
[1761554804067,0.15026718,1159.9,1156.9,0.56268725]
[1761554804268,0.15026718,1159.9,1157.0,0.56268725]
[1761554804465,0.15026718,1159.9,1157.1,0.56268725]
[1761554804666,0.15026718,1159.9,1157.2,0.56268725]
[1761554804863,0.15026718,1159.9,1156.7,0.64455007]
[1761554805063,0.15026718,1159.9,1156.8,0.56271291]
[1761554805262,0.15026718,1159.9,1156.9,0.56271291]
[1761554805562,0.15026718,1159.9,1157.0,0.56271291]
[1761554805763,0.15026718,1159.9,1157.1,0.56271291]
[1761554805967,0.15026718,1159.9,1157.2,0.56271291]
[1761554806164,0.15026718,1159.9,1156.7,0.64455007]
[1761554806467,0.15026718,1159.9,1156.8,0.56266254]
[1761554806664,0.15026718,1159.9,1156.9,0.56266254]
[1761554806864,0.15026718,1159.9,1157.0,0.56266254]
[1761554807067,0.15026718,1159.9,1157.1,0.56266254]
[1761554807369,0.15026718,1159.9,1156.7,0.64455007]
[1761554807664,2.28952462,1159.9,1156.8,0.56255133]
[1761554807863,2.28952462,1159.9,1156.9,0.56255133]
[1761554808067,2.13925744,1159.8,1157.0,0.56255133]
[1761554808267,2.13925744,1159.8,1157.1,0.56255133]
[1761554808567,2.13925744,1159.8,1156.7,0.64455007]
[1761554808768,2.13925744,1159.8,1156.8,0.56246816]
[1761554808963,2.13925744,1159.8,1156.9,0.56246816]
[1761554809162,2.13925744,1159.8,1157.0,0.56246816]
[1761554809466,2.28952462,1159.9,1157.1,0.56246816]
[1761554809665,2.28952462,1159.9,1156.7,0.64455007]
[1761554809866,2.28952462,1159.9,1156.8,0.56245755]
[1761554810069,2.28952462,1159.9,1156.9,0.56245755]
[1761554810268,2.28952462,1159.9,1157.0,0.56245755]
[1761554810470,2.28952462,1159.9,1157.1,0.56245755]
[1761554810767,2.28952462,1159.9,1156.5,0.64455007]
[1761554811070,2.13925744,1159.2,1156.6,0.56275258]
[1761554811268,2.13925744,1159.2,1156.7,0.56275258]
[1761554811471,2.13925744,1159.2,1156.5,0.64455007]
[1761554811671,2.13925744,1159.1,1156.6,0.56286892]
[1761554811866,2.13925744,1159.1,1156.7,0.56286892]
[1761554812069,2.13925744,1159.4,1156.8,0.56286892]
[1761554812267,2.13925744,1159.4,1156.3,2.05655007]
[1761554812466,2.13925744,1159.4,1156.4,0.56292848]
[1761554812671,2.13925744,1159.4,1156.5,0.56292848]
[1761554812871,2.13925744,1159.4,1156.6,0.56292848]
[1761554813073,2.13925744,1159.4,1156.7,0.56292848]
[1761554813273,2.13925744,1159.4,1156.8,0.56292848]
[1761554813570,2.13925744,1159.4,1156.3,2.05655007]
[1761554813768,2.13925744,1159.4,1156.4,0.56295804]
[1761554814068,2.13925744,1159.4,1156.5,0.56295804]
[1761554814272,2.13925744,1159.5,1156.6,0.56295804]
[1761554814474,2.13925744,1159.5,1156.7,0.56295804]
[1761554814673,2.13925744,1159.5,1156.3,1.412]
[1761554814870,2.13925744,1159.5,1156.4,0.56309225]
[1761554815071,2.13925744,1159.5,1156.5,0.56309225]
[1761554815269,2.13925744,1159.2,1156.6,0.56309225]
[1761554815474,2.13925744,1159.2,1156.7,0.56309225]
[1761554815673,2.13925744,1159.2,1156.3,0.64455007]
[1761554815971,2.13925744,1159.2,1156.4,0.56313695]
[1761554816170,2.13925744,1159.2,1156.5,0.56313695]
[1761554816373,2.13925744,1159.2,1156.6,0.56313695]
[1761554816575,2.13925744,1159.2,1156.7,0.56313695]
[1761554816773,2.13925744,1159.2,1156.3,0.64455007]
[1761554816971,2.13925744,1159.2,1156.4,0.56317632]
[1761554817176,2.13925744,1159.2,1156.5,0.56317632]
[1761554817471,2.13925744,1159.2,1156.6,0.56317632]
[1761554817671,2.13925744,1159.2,1156.7,0.56317632]
[1761554817877,2.13925744,1159.2,1156.8,0.5632131]
[1761554818076,2.9949059,1159.6,1156.9,1.99007428]
[1761554818273,0.15026718,1159.9,1156.9,1.99007428]
[1761554818274,0.15026718,1159.9,1156.9,1.427]
[1761554821377,2.13925744,1159.4,1156.9,1.427]
[1761554821778,2.13925744,1159.3,1156.9,1.427]
[1761554822874,2.13925744,1159.1,1156.9,1.427]
[1761554826481,2.13925744,1159.2,1156.9,1.427]
[1761554826780,5.13416334,1159.2,1156.9,1.427]
[1761554826978,2.13925744,1159.1,1156.9,1.427]
[1761554832185,2.13925744,1159.3,1156.9,1.427]
[1761554832686,2.13925744,1159.2,1156.9,1.427]
[1761554833286,2.13925744,1159.3,1156.9,1.427]
[1761554833586,2.13925744,1159.4,1157.0,0.56284459]
[1761554833786,2.13925744,1159.4,1156.9,1.427]
[1761554833988,2.13925744,1159.4,1157.0,0.562841]
[1761554834185,2.13925744,1159.4,1156.9,1.427]
[1761554834586,2.13925744,1159.0,1156.9,1.427]
[1761554835390,2.13925744,1159.0,1157.0,0.56912161]
[1761554835597,2.13925744,1159.0,1156.9,1.427]
[1761554835794,2.13925744,1159.0,1157.0,0.56912061]
[1761554836092,2.13925744,1159.1,1156.9,1.427]
[1761554836297,2.13925744,1159.1,1157.0,0.56912061]
[1761554836498,2.13925744,1159.2,1156.9,1.427]
[1761554836700,2.13925744,1159.2,1157.0,0.56920473]
[1761554836994,2.13925744,1159.2,1156.9,1.427]
[1761554837199,2.13925744,1159.2,1157.0,0.56920473]
[1761554837495,2.13925744,1159.2,1157.1,0.56930403]
[1761554837700,2.9949059,1159.6,1156.9,1.427]
[1761554837898,2.9949059,1159.6,1157.0,0.56939063]
[1761554838096,0.15026718,1159.9,1156.9,1.427]
[1761554838397,0.15026718,1159.9,1157.0,0.56864383]
[1761554838598,0.15026718,1159.9,1157.1,0.56864383]
[1761554838894,0.15026718,1159.9,1156.9,1.427]
[1761554839099,0.15026718,1159.9,1157.0,0.56871411]
[1761554839298,0.15026718,1159.9,1157.1,0.56871411]
[1761554839500,0.15026718,1159.9,1156.9,1.427]
[1761554839696,2.13925744,1159.0,1156.9,1.427]
[1761554840200,2.13925744,1158.8,1156.9,1.427]
[1761554841801,2.13925744,1158.5,1156.9,1.427]
[1761554843804,2.13925744,1158.7,1156.9,1.427]
[1761554848212,2.13925744,1158.7,1156.2,0.15030742]
[1761554848508,2.13925744,1158.8,1156.3,0.56904743]
[1761554848713,2.13925744,1158.8,1156.4,0.56904743]
[1761554849012,2.13925744,1158.7,1156.5,0.56904743]
[1761554849211,2.13925744,1158.7,1156.2,0.15030742]
[1761554849511,2.13925744,1158.8,1156.3,0.56841918]
[1761554849709,2.13925744,1158.8,1156.4,0.56841918]
[1761554849908,2.13925744,1158.8,1156.5,0.56841918]
[1761554850110,2.13925744,1158.8,1156.2,0.15030742]
[1761554850309,2.13925744,1158.8,1156.3,0.5683596]
[1761554850509,2.13925744,1158.8,1156.4,2.3683596]
[1761554850706,2.13925744,1158.8,1156.5,0.5683596]
[1761554851709,2.13925744,1158.7,1156.5,0.5683596]
[1761554853212,2.13925744,1158.8,1156.5,0.5683596]
[1761554854513,2.13925744,1158.8,1156.6,0.5683596]
[1761554854713,4.2445844,1159.8,1156.4,1.8]
[1761554855013,4.2445844,1159.8,1156.5,0.56834475]
[1761554855215,4.2445844,1159.8,1156.6,0.56834475]
[1761554855512,4.2445844,1159.8,1156.4,1.8]
[1761554855713,0.15026718,1159.9,1156.5,0.5681827]
[1761554855916,0.15026718,1159.9,1156.6,0.5681827]
[1761554856112,0.15026718,1159.9,1156.4,1.8]
[1761554856316,0.15026718,1159.9,1156.5,0.56815742]
[1761554856516,0.15026718,1159.9,1156.6,0.56815742]
[1761554856814,0.15026718,1159.9,1156.4,1.8]
[1761554857017,0.15026718,1159.9,1156.5,0.5682558]
[1761554857315,0.15026718,1159.9,1156.6,0.5682558]
[1761554857513,2.13925744,1159.5,1156.4,1.8]
[1761554857714,2.13925744,1159.5,1156.5,0.56818773]
[1761554857917,2.13925744,1159.5,1156.6,0.56818773]
[1761554858120,2.13925744,1159.5,1156.4,1.8]
[1761554858318,2.13925744,1159.5,1156.5,0.56827129]
[1761554858614,0.15026718,1159.9,1156.6,0.56827129]
[1761554858819,0.15026718,1159.9,1156.4,1.8]
[1761554859120,0.15026718,1159.9,1156.5,0.56843037]
[1761554859315,0.15026718,1159.9,1156.6,0.56843037]
[1761554859516,0.15026718,1159.9,1156.4,1.8]
[1761554859716,0.15026718,1159.9,1156.5,0.56841824]
[1761554860018,0.15026718,1159.9,1156.6,0.56841824]
[1761554860216,0.15026718,1159.9,1156.4,1.8]
[1761554860519,0.15026718,1159.9,1156.5,0.5685611]
[1761554860716,0.15026718,1159.9,1156.6,0.5685611]
[1761554860916,0.15026718,1159.9,1156.4,1.8]
[1761554861115,0.15026718,1159.9,1156.5,0.56857122]
[1761554861318,0.15026718,1159.9,1156.4,1.8]
[1761554861520,2.13925744,1159.2,1156.2,0.15030742]
[1761554861721,2.13925744,1159.2,1156.3,0.5687603]
[1761554861920,2.13925744,1159.2,1156.2,0.15030742]
[1761554862216,2.13925744,1158.7,1156.3,0.5687603]
[1761554862421,2.13925744,1158.7,1156.2,0.15030742]
[1761554862620,2.13925744,1158.7,1156.3,0.56879967]
[1761554862821,2.13925744,1158.7,1156.4,0.5687337]
[1761554863122,2.13925744,1159.2,1156.5,0.5687337]
[1761554863322,2.13925744,1159.2,1156.2,0.15030742]
[1761554863522,2.13925744,1159.3,1156.3,0.56863151]
[1761554863718,2.13925744,1159.3,1156.4,0.56863151]
[1761554864023,2.13925744,1159.0,1156.5,0.56863151]
[1761554864218,2.13925744,1159.0,1156.2,0.15030742]
[1761554864421,2.13925744,1159.0,1156.3,0.56869112]
[1761554864622,2.13925744,1159.0,1156.4,0.56869112]
[1761554864919,2.13925744,1159.0,1156.5,0.56869112]
[1761554865120,2.13925744,1159.6,1156.6,0.56869112]
[1761554865324,2.13925744,1159.6,1156.2,0.15030742]
[1761554865524,0.15026718,1159.9,1156.3,2.14180638]
[1761554865721,0.15026718,1159.9,1156.4,0.56880638]
[1761554865920,0.15026718,1159.9,1156.5,0.56880638]
[1761554866120,0.15026718,1159.9,1156.6,0.56880638]
[1761554866324,0.15026718,1159.9,1156.3,1.573]
[1761554866525,0.15026718,1159.9,1156.4,0.56892127]
[1761554866825,0.15026718,1159.9,1156.5,0.56892127]
[1761554867026,2.13925744,1159.4,1156.6,0.56892127]
[1761554867226,2.13925744,1159.2,1156.7,0.56892127]
[1761554867425,2.13925744,1159.2,1156.8,0.56892127]
[1761554867623,2.13925744,1159.4,1156.9,0.56892127]
[1761554867826,2.13925744,1159.4,1156.5,0.64455007]
[1761554868028,2.13925744,1159.4,1156.6,0.56844598]
[1761554868223,2.13925744,1159.4,1156.7,0.56844598]
[1761554868423,2.13925744,1159.4,1156.8,0.56844598]
[1761554868623,2.13925744,1159.4,1156.9,0.56844598]
[1761554868827,2.13925744,1159.4,1157.0,0.56844598]
[1761554869028,2.13925744,1159.4,1156.5,0.64455007]
[1761554869228,2.13925744,1159.4,1156.6,0.56959572]
[1761554869529,2.13925744,1159.4,1156.7,0.56959572]
[1761554869825,2.13925744,1159.4,1156.8,0.56959572]
[1761554870025,2.13925744,1159.4,1156.9,0.56959572]
[1761554870224,2.13925744,1159.4,1157.0,0.56959572]
[1761554870528,2.13925744,1159.4,1156.5,0.64455007]
[1761554870729,2.13925744,1159.3,1156.6,0.56977676]
[1761554871028,2.13925744,1159.3,1156.7,0.56977676]
[1761554871226,2.13925744,1159.4,1156.8,0.56977676]
[1761554871430,2.13925744,1159.4,1156.9,0.56977676]
[1761554871730,2.13925744,1159.4,1157.0,0.56977676]
[1761554872032,2.13925744,1159.4,1156.6,0.64455007]
[1761554872330,3.14517308,1159.9,1156.7,0.56970612]
[1761554872331,2.13925744,1159.5,1156.7,0.56970612]
[1761554872530,2.13925744,1159.5,1156.8,0.56970612]
[1761554872727,2.13925744,1159.5,1156.9,0.56970612]
[1761554872931,2.13925744,1159.5,1157.0,0.56970612]
[1761554873233,2.13925744,1159.5,1156.6,0.64455007]
[1761554873234,2.13925744,1159.5,1157.1,0.56963044]
[1761554873427,2.13925744,1159.6,1156.6,0.64455007]
[1761554873629,2.13925744,1159.6,1156.7,0.56957574]
[1761554873929,2.13925744,1159.5,1156.8,0.56957574]
[1761554874132,2.13925744,1159.5,1156.9,0.56957574]
[1761554874333,2.13925744,1159.8,1157.0,0.56957574]
[1761554874531,2.13925744,1159.8,1157.1,0.56957574]
[1761554874729,2.13925744,1159.8,1156.6,0.64455007]
[1761554874928,2.13925744,1159.8,1156.7,0.56951854]
[1761554875128,2.13925744,1159.8,1156.8,0.56951854]
[1761554875333,2.13925744,1159.8,1156.9,0.56951854]
[1761554875630,2.13925744,1159.8,1157.0,0.56951854]
[1761554875828,2.13925744,1159.8,1156.6,0.64455007]
[1761554875829,2.13925744,1159.8,1157.1,0.56951854]
[1761554876032,0.15026718,1159.9,1157.2,0.56951854]
[1761554876233,0.15026718,1159.9,1156.4,0.64455007]
[1761554876433,0.15026718,1159.9,1156.5,0.56938114]
[1761554876733,0.15026718,1159.9,1156.6,0.56938114]
[1761554877032,0.15026718,1159.9,1156.7,0.56938114]
[1761554877232,0.15026718,1159.9,1156.8,0.56938114]
[1761554877430,0.15026718,1159.9,1156.9,0.56938114]
[1761554877630,0.15026718,1159.9,1157.0,0.56938114]
[1761554877834,0.15026718,1159.9,1157.1,0.56938114]
[1761554878129,0.15026718,1159.9,1157.2,0.56938114]
[1761554878333,0.15026718,1159.9,1156.4,0.64455007]
[1761554878633,0.15026718,1159.9,1156.5,0.56932152]
[1761554878930,0.15026718,1159.9,1156.6,0.56932152]
[1761554879129,0.15026718,1159.9,1156.7,0.56932152]
[1761554879329,0.15026718,1159.9,1156.8,0.56932152]
[1761554879528,0.15026718,1159.9,1156.9,0.56932152]
[1761554879733,0.15026718,1159.9,1157.0,0.56932152]
[1761554879931,0.15026718,1159.9,1157.1,0.56932152]
[1761554880130,0.15026718,1159.9,1156.3,2.21755007]
[1761554880329,0.15026718,1159.9,1156.4,0.56914974]
[1761554880533,0.15026718,1159.9,1156.5,0.56914974]
[1761554880735,0.15026718,1159.9,1156.6,0.56914974]
[1761554880935,0.15026718,1159.9,1156.7,0.56914974]
[1761554881135,2.13925744,1159.1,1156.8,0.56914974]
[1761554881333,2.13925744,1159.1,1156.9,0.56914974]
[1761554881533,2.13925744,1159.1,1156.4,0.64455007]
[1761554881736,2.13925744,1159.5,1156.5,0.56942027]
[1761554881937,2.13925744,1159.5,1156.6,0.56942027]
[1761554882136,2.13925744,1159.5,1156.7,0.56942027]
[1761554882337,2.13925744,1159.5,1156.8,0.56942027]
[1761554882637,2.13925744,1159.5,1156.9,0.56942027]
[1761554882834,2.13925744,1159.6,1156.4,0.64455007]
[1761554883134,2.13925744,1159.6,1156.5,0.56951308]
[1761554883337,2.13925744,1159.5,1156.6,0.56951308]
[1761554883637,2.13925744,1159.5,1156.7,0.56951308]
[1761554883836,2.13925744,1159.5,1156.8,0.56951308]
[1761554884035,2.13925744,1159.5,1156.4,0.64455007]
[1761554884341,2.13925744,1159.5,1156.5,0.56955003]
[1761554884534,2.13925744,1159.5,1156.6,0.56955003]
[1761554884733,2.13925744,1159.5,1156.7,0.56955003]
[1761554884938,2.13925744,1159.5,1156.8,0.56955003]
[1761554885238,2.13925744,1159.5,1156.9,0.56955003]
[1761554885538,2.13925744,1159.5,1156.3,1.573]
[1761554885738,2.13925744,1159.5,1156.4,0.56987188]
[1761554885937,0.15026718,1159.9,1156.5,0.56987188]
[1761554886135,0.15026718,1159.9,1156.6,0.56987188]
[1761554886336,0.15026718,1159.9,1156.7,0.56987188]
[1761554886539,0.15026718,1159.9,1156.8,0.56987188]
[1761554886739,0.15026718,1159.9,1156.9,0.56987188]
[1761554886940,0.15026718,1159.9,1156.3,1.573]
[1761554887141,0.15026718,1159.9,1156.4,0.56988068]
[1761554887341,0.15026718,1159.9,1156.5,0.56988068]
[1761554887540,0.15026718,1159.9,1156.6,0.56988068]
[1761554887740,0.15026718,1159.9,1156.7,0.56988068]
[1761554887942,0.15026718,1159.9,1156.8,0.56988068]
[1761554888241,0.15026718,1159.9,1156.9,0.56988068]
[1761554888442,0.15026718,1159.9,1156.3,1.573]
[1761554888642,0.15026718,1159.9,1156.4,0.56996704]
[1761554888842,0.15026718,1159.9,1156.5,0.56996704]
[1761554889043,2.13925744,1159.3,1156.6,0.56996704]
[1761554889240,2.13925744,1159.3,1156.3,1.573]
[1761554889441,2.13925744,1158.5,1156.4,0.57029572]
[1761554889642,2.13925744,1158.5,1156.5,0.57029572]
[1761554889842,2.13925744,1158.5,1156.3,1.573]
[1761554890042,2.13925744,1158.5,1156.4,0.56883583]
[1761554890239,2.13925744,1158.5,1156.5,0.56883583]
[1761554890542,2.13925744,1158.5,1156.3,1.573]
[1761554890739,2.13925744,1158.5,1156.4,0.56884466]
[1761554890939,2.13925744,1158.5,1156.5,0.56884466]
[1761554891139,2.13925744,1158.5,1156.3,1.573]
[1761554891343,2.13925744,1158.5,1156.4,0.5688452]
[1761554891543,2.13925744,1158.5,1156.5,0.5688452]
[1761554891739,2.13925744,1158.5,1156.6,0.5688452]
[1761554891941,2.13925744,1158.5,1156.3,2.21755007]
[1761554892144,2.13925744,1158.6,1156.4,0.56895687]
[1761554892343,2.13925744,1158.6,1156.5,0.56895687]
[1761554892541,2.13925744,1158.6,1156.6,0.56895687]
[1761554892738,2.13925744,1158.6,1156.3,2.21755007]
[1761554892941,2.13925744,1158.6,1156.4,0.56898309]